bitfinex/quotes_ETHUSD_20251120
["timestamp","ask_amount","ask_price","bid_price","bid_amount"]
[1763667231118,3.189703,2839.0,2838.6,0.001]
[1763667231316,0.4861,2839.2,2838.6,0.001]
[1763667231317,1.39309264,2839.2,2838.6,0.001]
[1763667231566,0.405504,2839.0,2838.6,0.001]
[1763667231716,0.405504,2838.8,2838.6,0.001]
[1763667231921,1.31249664,2838.8,2838.6,0.001]
[1763667232248,0.405504,2838.7,2838.6,0.001]
[1763667232950,0.405504,2839.0,2838.6,0.001]
[1763667233252,0.61815915,2839.0,2838.6,0.001]
[1763667233553,0.405504,2838.8,2838.6,0.001]
[1763667233758,9.55436264,2838.7,2838.6,0.001]
[1763667234073,2.57729416,2838.7,2838.6,0.001]
[1763667234353,2.19377314,2838.7,2838.6,0.001]
[1763667234563,0.73370152,2838.7,2838.6,0.001]
[1763667234718,0.405504,2838.7,2838.6,0.001]
[1763667234920,0.405504,2838.7,2838.6,0.4675]
[1763667235116,0.405504,2838.7,2838.6,0.001]
[1763667235824,0.18421313,2839.5,2838.6,0.4675]
[1763667235825,0.674,2839.4,2838.6,0.4675]
[1763667236157,0.32841754,2839.3,2838.6,0.9228]
[1763667236722,0.405504,2839.2,2838.6,0.9228]
[1763667238161,0.405504,2839.2,2838.6,0.001]
[1763667238457,0.405504,2839.0,2838.6,0.001]
[1763667239363,0.1879,2839.4,2838.9,0.4665]
[1763667239929,0.32875502,2839.4,2838.9,0.4665]
[1763667240132,0.4861,2839.9,2839.3,0.0822]
[1763667240133,0.32875502,2839.8,2839.3,0.0822]
[1763667240328,0.4861,2839.9,2838.6,0.001]
[1763667240329,7.54961251,2839.6,2838.6,0.001]
[1763667240668,0.90699264,2839.3,2838.6,0.001]
[1763667240966,0.32875502,2839.2,2838.6,0.001]
[1763667241175,0.32875502,2839.3,2838.6,0.001]
[1763667241348,0.405504,2839.2,2838.6,0.001]
[1763667241553,0.73425902,2839.2,2838.6,0.001]
[1763667241867,0.405504,2839.0,2838.6,0.001]
[1763667242486,0.405504,2838.8,2838.6,0.001]
[1763667242638,0.856004,2838.7,2838.6,0.001]
[1763667242843,1.18475902,2838.7,2838.6,0.001]
[1763667243575,1.67085902,2838.7,2838.6,0.001]
[1763667243773,8.40680383,2838.7,2838.6,0.001]
[1763667243975,0.405504,2838.4,2838.3,0.001]
[1763667244177,11.90922784,2838.4,2838.3,0.001]
[1763667244379,11.76459484,2838.4,2838.3,0.001]
[1763667244677,20.64849084,2838.4,2838.3,0.001]
[1763667244974,22.71333992,2838.4,2838.3,0.001]
[1763667245146,22.01113692,2838.4,2838.3,0.001]
[1763667245340,22.56430083,2838.4,2838.3,0.001]
[1763667245580,9.35075564,2838.3,2838.2,0.001]
[1763667245763,8.21946079,2838.3,2838.2,0.001]
[1763667245967,10.01021399,2838.3,2838.2,0.001]
[1763667246141,6.75972799,2838.3,2838.2,0.001]
[1763667246341,7.82790799,2838.3,2838.2,0.001]
[1763667246760,11.21564099,2838.3,2838.2,0.001]
[1763667246955,4.36447672,2838.3,2838.2,0.001]
[1763667247158,4.36447672,2838.3,2838.1,0.001]
[1763667247159,3.71088864,2838.2,2838.1,0.001]
[1763667247474,8.6835026,2838.2,2838.1,0.001]
[1763667247692,3.7748326,2838.2,2838.1,0.001]
[1763667247880,8.8370286,2838.2,2838.1,0.001]
[1763667248382,6.8131526,2838.2,2838.1,0.001]
[1763667248554,3.7748326,2838.2,2838.1,0.001]
[1763667248763,0.32982688,2838.2,2838.1,0.001]
[1763667249075,0.32982688,2838.3,2838.1,0.001]
[1763667249269,0.4801,2838.2,2838.1,0.001]
[1763667249590,7.49765798,2838.2,2838.1,0.001]
[1763667249892,2.60741398,2838.2,2838.1,0.001]
[1763667250043,2.43837177,2838.2,2838.1,0.001]
[1763667250449,1.95827177,2838.2,2838.1,0.001]
[1763667251068,0.32971734,2838.2,2838.1,0.1843]
[1763667251278,0.32971734,2838.6,2838.1,1.1546]
[1763667251583,0.32971734,2838.5,2838.1,0.001]
[1763667251769,0.32971734,2838.4,2838.1,0.001]
[1763667251977,0.405504,2838.3,2838.1,0.001]
[1763667252161,1.79259664,2838.2,2838.1,0.001]
[1763667252352,3.6157116,2838.2,2838.1,0.001]
[1763667252549,5.7040876,2838.2,2838.1,0.001]
[1763667252791,3.6157116,2838.2,2838.1,0.001]
[1763667252988,0.405504,2837.8,2837.7,0.001]
[1763667253300,1.64221398,2837.8,2837.7,0.001]
[1763667253447,4.5999792,2837.8,2837.7,0.001]
[1763667253647,3.5461812,2837.8,2837.7,0.001]
[1763667254472,7.6023662,2837.8,2837.7,0.001]
[1763667254801,7.22948988,2837.8,2837.7,0.001]
[1763667255005,7.22948988,2837.8,2837.0,0.001]
[1763667255006,6.90003986,2837.8,2837.0,0.001]
[1763667255165,0.405504,2837.4,2837.0,0.001]
[1763667255354,0.73497366,2837.4,2837.0,0.001]
[1763667255702,0.890604,2837.4,2837.0,0.001]
[1763667255845,0.405504,2837.4,2837.0,0.001]
[1763667256050,7.07005818,2837.5,2837.0,0.001]
[1763667256276,0.405504,2837.3,2837.0,0.001]
[1763667257397,0.73497252,2837.3,2837.0,0.001]
[1763667257954,0.73497252,2837.3,2837.1,0.1833]
[1763667258200,0.73497252,2837.3,2837.2,0.4885]
[1763667258377,0.32946852,2837.3,2837.2,0.4885]
[1763667258573,0.405504,2837.4,2837.2,0.4885]
[1763667258772,0.405504,2837.6,2837.2,0.4885]
[1763667258956,0.405504,2837.4,2837.2,0.4885]
[1763667259287,0.32946852,2837.4,2837.2,0.4885]
[1763667259451,0.405504,2837.4,2837.2,0.4885]
[1763667259652,0.405504,2837.4,2837.1,0.1833]
[1763667259887,0.32946852,2837.4,2837.1,0.1833]
[1763667260098,0.405504,2837.4,2837.0,0.001]
[1763667260297,0.73497252,2837.4,2837.0,0.001]
[1763667260456,0.405504,2837.2,2837.0,0.001]
[1763667260774,8.38255482,2837.1,2837.0,0.001]
[1763667260974,9.58322567,2837.1,2837.0,0.001]
[1763667261591,2.51316749,2837.1,2837.0,0.001]
[1763667261765,2.51316749,2837.1,2837.0,0.9713]
[1763667261766,1.23646116,2837.1,2837.0,0.9713]
[1763667261966,1.23646116,2837.1,2837.0,0.4895]
[1763667262459,1.64196516,2837.1,2837.0,0.4895]
[1763667262795,0.90699264,2837.8,2837.0,0.9713]
[1763667263110,0.32901198,2837.7,2837.1,0.1833]
[1763667263408,7.07005818,2837.6,2837.0,0.001]
[1763667263557,1.64150862,2837.5,2837.0,0.001]
[1763667263756,0.405504,2837.3,2837.0,0.001]
[1763667263953,0.405504,2837.1,2837.0,0.001]
[1763667264154,2.42961524,2837.1,2837.0,0.001]
[1763667264597,2.42961524,2837.1,2837.0,0.4895]
[1763667264598,0.73451598,2837.1,2837.0,0.4895]
[1763667264898,0.405504,2837.3,2837.0,0.9713]
[1763667265098,0.407504,2837.7,2837.0,0.9713]
[1763667265303,1.31249664,2837.5,2837.0,0.001]
[1763667265460,0.405504,2837.3,2837.0,0.001]
[1763667265660,0.405504,2837.3,2837.1,0.4818]
[1763667265884,0.405504,2837.3,2837.0,0.001]
[1763667265885,0.405504,2837.3,2837.2,0.4885]
[1763667266084,0.405504,2837.3,2837.0,0.001]
[1763667266687,0.405504,2837.3,2837.2,0.4885]
[1763667266898,0.32897099,2837.3,2837.0,0.001]
[1763667267096,0.73447499,2837.5,2837.0,0.001]
[1763667267299,0.95882227,2837.3,2837.0,0.001]
[1763667267520,0.405504,2837.1,2837.0,0.001]
[1763667268828,0.405504,2837.1,2837.0,0.4895]
[1763667268991,0.405504,2837.2,2837.0,0.4895]
[1763667269198,0.32897099,2837.2,2837.0,0.001]
[1763667269614,0.32897099,2837.1,2837.0,0.001]
[1763667269800,0.405504,2837.3,2837.0,0.001]
[1763667269801,0.32897099,2837.2,2837.0,0.001]
[1763667269996,0.73447499,2837.1,2837.0,0.001]
[1763667270183,0.7351198,2837.1,2837.0,0.001]
[1763667270589,2.13531244,2837.1,2837.0,0.001]
[1763667271011,1.64211244,2837.1,2837.0,0.001]
[1763667271234,0.7351198,2837.1,2837.0,0.001]
[1763667271516,0.7351198,2837.1,2837.0,0.5004]
[1763667272096,0.7351198,2837.1,2837.0,0.001]
[1763667273697,0.7351198,2837.1,2837.0,0.5004]
[1763667273910,0.7351198,2837.1,2837.0,0.001]
[1763667275020,0.7351198,2837.1,2837.0,0.5004]
[1763667275328,0.7351198,2837.1,2837.0,0.001]
[1763667275533,0.7351198,2837.1,2837.0,0.5004]
[1763667276300,0.3296158,2837.1,2837.0,0.9622]
[1763667276518,0.405504,2837.5,2837.0,0.9622]
[1763667276519,0.405504,2837.3,2837.0,0.9622]
[1763667276736,0.3296158,2837.2,2837.1,0.6507]
[1763667276905,0.7351198,2837.2,2837.1,0.6507]
[1763667277100,0.7351198,2837.2,2837.1,1.1501]
[1763667277306,0.7351198,2837.2,2837.1,0.4994]
[1763667277734,0.405504,2837.1,2837.0,0.001]
[1763667277929,0.7351198,2837.1,2837.0,0.001]
[1763667278833,1.77370285,2837.1,2837.0,0.001]
[1763667279033,2.43787314,2837.1,2837.0,0.001]
[1763667279220,1.46587314,2837.1,2837.0,0.001]
[1763667279536,0.91249009,2837.1,2837.0,0.001]
[1763667279699,0.7351198,2837.1,2837.0,0.9479]
[1763667279904,0.7351198,2837.1,2837.0,0.4614]
[1763667281257,0.3296158,2837.1,2837.0,0.9479]
[1763667281452,0.3296158,2837.3,2837.0,0.9479]
[1763667281739,0.3296158,2837.2,2837.1,0.6733]
[1763667281938,0.3296158,2837.6,2837.1,0.6733]
[1763667282103,0.3296158,2837.5,2837.2,0.4865]
[1763667282309,0.002,2837.7,2837.4,0.4604]
[1763667282593,0.3307631,2837.6,2837.4,0.4604]
[1763667282747,0.3307631,2837.5,2837.4,0.4604]
[1763667283080,0.3307631,2837.5,2837.1,0.1868]
[1763667283258,0.3307631,2837.4,2837.1,0.6733]
[1763667283461,0.405504,2837.2,2837.1,0.6733]
[1763667283869,0.002,2837.7,2837.1,0.6472]
[1763667283870,0.405504,2837.5,2837.1,0.6472]
[1763667284177,0.405504,2837.3,2837.1,0.6472]
[1763667284345,0.33069567,2837.2,2837.1,0.6472]
[1763667284545,0.405504,2837.3,2837.1,0.6472]
[1763667284773,0.33069567,2837.2,2837.1,1.1337]
[1763667284978,0.73619967,2837.2,2837.1,0.1868]
[1763667285144,0.405504,2837.2,2837.1,0.6472]
[1763667285842,0.405504,2837.1,2837.0,0.001]
[1763667286079,0.73619967,2837.1,2837.0,0.001]
[1763667286301,0.33069567,2837.1,2837.0,0.001]
[1763667286847,1.70819967,2837.1,2837.0,0.001]
[1763667287079,8.13834236,2837.1,2837.0,0.001]
[1763667287448,8.52910516,2837.1,2837.0,0.001]
[1763667287647,8.13834236,2837.1,2837.0,0.001]
[1763667287845,7.83110136,2837.1,2837.0,0.001]
[1763667288044,7.83110136,2837.1,2836.7,0.001]
[1763667288045,18.39501736,2837.1,2836.7,0.001]
[1763667288350,15.60792782,2836.8,2836.7,0.001]
[1763667288568,12.84539766,2836.8,2836.7,0.001]
[1763667288774,13.33219766,2836.8,2836.7,0.001]
[1763667288971,1.64308848,2836.8,2836.7,0.001]
[1763667289173,2.61508848,2836.8,2836.7,0.001]
[1763667289385,2.61160315,2836.8,2836.7,0.001]
[1763667289883,2.12828848,2836.8,2836.7,0.001]
[1763667290090,1.64308848,2836.8,2836.7,0.001]
[1763667290306,2.12828848,2836.8,2836.7,0.001]
[1763667290470,1.64308848,2836.8,2836.7,0.001]
[1763667291207,2.12828848,2836.8,2836.7,0.001]
[1763667291413,2.34111733,2836.8,2836.7,0.001]
[1763667291701,1.64308848,2836.8,2836.7,0.4614]
[1763667292066,1.64308848,2836.8,2836.7,0.9479]
[1763667292268,0.33059184,2836.8,2836.7,0.9479]
[1763667292567,0.33059184,2837.6,2836.7,0.9479]
[1763667292776,0.405504,2837.4,2836.8,0.4865]
[1763667292979,0.405504,2837.2,2836.8,0.4865]
[1763667293175,0.33023372,2837.2,2836.8,0.4865]
[1763667293381,0.405504,2837.4,2837.1,0.6472]
[1763667293577,0.405504,2837.2,2837.1,0.6472]
[1763667293901,0.33023372,2837.2,2837.1,0.6472]
[1763667294211,0.405504,2837.3,2837.1,0.6472]
[1763667294370,0.33023372,2837.3,2837.1,1.1337]
[1763667294567,0.33023372,2837.6,2837.2,0.9469]
[1763667294801,0.73573772,2837.5,2837.2,0.9469]
[1763667294998,0.405504,2837.3,2837.2,0.9469]
[1763667295376,0.73573772,2837.5,2837.2,0.9469]
[1763667295575,0.405504,2837.3,2837.2,0.9469]
[1763667295804,0.33023372,2837.3,2837.2,0.9469]
[1763667296005,0.405504,2837.3,2837.2,0.9469]
[1763667296214,0.95882225,2837.3,2836.7,0.4875]
[1763667296380,0.405504,2837.1,2836.9,0.1868]
[1763667296870,0.405504,2837.1,2837.0,0.9469]
[1763667297070,0.002,2837.7,2837.2,0.4604]
[1763667297283,0.002,2837.7,2837.6,0.4604]
[1763667297716,0.002,2837.7,2837.6,0.9469]
[1763667300275,0.002,2837.7,2837.6,0.4604]
[1763667300476,0.002,2837.7,2836.9,0.1868]
[1763667300779,0.002,2837.7,2837.6,0.4604]
[1763667301005,0.002,2838.3,2837.9,0.4604]
[1763667301193,0.002,2838.3,2838.2,0.6472]
[1763667301507,0.002,2838.3,2838.2,1.1337]
[1763667302024,0.4868,2839.5,2838.2,1.1337]
[1763667302216,0.1809,2838.9,2838.2,0.6472]
[1763667302401,0.405504,2838.2,2837.7,0.1868]
[1763667302720,0.405504,2838.0,2837.4,0.1868]
[1763667303024,0.405504,2838.4,2837.4,0.1868]
[1763667303173,0.73447658,2838.4,2837.4,0.6733]
[1763667303672,0.73447658,2838.4,2837.5,0.4865]
[1763667304224,0.405504,2838.6,2837.5,0.4865]
[1763667304511,0.1809,2838.9,2837.5,0.4865]
[1763667304512,0.32883311,2838.7,2838.3,0.6472]
[1763667304728,1.90352575,2838.9,2837.5,0.4865]
[1763667304924,0.405504,2838.7,2837.6,0.4865]
[1763667305150,0.405504,2838.7,2837.4,0.1868]
[1763667305151,0.73433711,2838.7,2837.4,0.1868]
[1763667305352,0.1809,2839.3,2838.6,0.6472]
[1763667305646,0.1809,2839.3,2838.2,0.1868]
[1763667305647,0.6661,2838.7,2838.2,0.1868]
[1763667305846,0.405504,2838.8,2838.2,0.1868]
[1763667306031,0.4868,2839.2,2838.2,0.6733]
[1763667306236,0.1809,2839.3,2838.7,0.4604]
[1763667306608,0.32869959,2839.5,2838.7,0.4604]
[1763667306609,0.32869959,2839.5,2838.7,0.9469]
[1763667307274,0.1809,2839.8,2838.8,0.4865]
[1763667308106,0.6677,2839.8,2838.2,0.1868]
[1763667308308,0.6677,2839.8,2838.5,0.4865]
[1763667308504,0.405504,2839.5,2838.2,0.1868]
[1763667308760,1.31249664,2839.3,2838.2,0.1868]
[1763667309040,2.95812,2839.4,2837.7,0.456]
[1763667309041,0.405504,2839.1,2837.7,0.456]
[1763667309247,0.405504,2838.9,2837.7,0.456]
[1763667309653,0.405504,2838.7,2837.7,0.456]
[1763667310244,0.405504,2838.7,2836.7,0.001]
[1763667310245,0.405504,2838.5,2837.2,0.456]
[1763667310443,0.73364348,2838.5,2837.4,0.6428]
[1763667310648,0.405504,2838.2,2837.4,0.6428]
[1763667310833,0.405504,2838.2,2837.5,0.456]
[1763667311249,0.405504,2838.5,2837.5,0.456]
[1763667311419,0.1867,2838.8,2837.5,0.456]
[1763667311752,0.405504,2838.7,2837.5,0.456]
[1763667312046,0.4557,2839.3,2838.6,0.1812]
[1763667312423,0.405504,2839.2,2838.6,0.1812]
[1763667312632,0.405504,2839.2,2838.2,0.456]
[1763667312633,0.4557,2839.3,2838.4,0.1812]
[1763667312807,0.4557,2839.2,2838.4,0.1812]
[1763667313142,0.405504,2839.1,2838.4,0.1812]
[1763667313860,0.405504,2839.5,2838.4,0.1812]
[1763667314019,0.405504,2839.1,2838.4,0.1812]
[1763667314536,7.54678548,2839.7,2837.7,0.456]
[1763667314537,0.405504,2838.4,2837.7,0.456]
[1763667314916,0.405504,2839.1,2838.3,0.6787]
[1763667315125,0.405504,2838.8,2838.3,0.6787]
[1763667315325,0.2309,2840.1,2838.4,0.456]
[1763667315326,0.4557,2839.7,2838.4,0.456]
[1763667315642,0.4557,2839.7,2838.7,0.4975]
[1763667315843,0.002,2839.3,2838.7,0.4975]
[1763667316244,0.407504,2839.3,2838.7,0.4975]
[1763667316834,0.002,2839.3,2838.7,0.4975]
[1763667318535,0.002,2839.3,2839.2,0.5878]
[1763667318709,0.002,2839.3,2839.2,1.0438]
[1763667319137,0.002,2839.9,2839.3,0.90699264]
[1763667319412,0.002,2839.9,2839.8,0.4975]
[1763667319749,0.002,2840.5,2839.8,1.40449264]
[1763667319935,0.002,2840.5,2840.4,0.6787]
[1763667320374,0.002,2840.5,2840.4,1.1347]
[1763667320576,0.002,2840.5,2839.7,0.1812]
[1763667320577,0.9186,2840.5,2839.7,0.1812]
[1763667320780,0.405504,2840.4,2839.2,0.0903]
[1763667320967,1.1890939,2840.4,2839.2,0.5463]
[1763667321157,0.861204,2840.4,2839.2,0.5463]
[1763667321489,0.405504,2840.3,2839.2,0.5463]
[1763667321789,0.55278333,2840.2,2839.2,0.5463]
[1763667322396,0.55278333,2840.2,2840.1,0.6787]
[1763667322768,0.55278333,2840.2,2840.1,1.1347]
[1763667323114,0.002,2840.5,2840.1,1.1347]
[1763667323588,0.002,2840.5,2840.4,0.4975]
[1763667323952,0.002,2840.5,2840.1,0.1812]
[1763667324598,0.405504,2840.1,2839.4,0.456]
[1763667327259,0.405504,2840.4,2839.4,0.456]
[1763667327586,0.405504,2840.1,2839.4,0.456]
[1763667328009,0.405504,2840.1,2839.2,0.0903]
[1763667328382,0.861204,2840.1,2839.2,0.0903]
[1763667329209,0.405504,2840.1,2839.3,0.456]
[1763667329412,0.002,2840.5,2839.3,0.456]
[1763667329413,0.407504,2840.5,2839.3,0.456]
[1763667329614,0.6476,2839.4,2838.4,0.90699264]
[1763667329816,0.405504,2839.3,2838.3,0.1812]
[1763667329979,0.861204,2839.3,2838.3,0.1812]
[1763667330181,0.861204,2839.3,2838.1,0.1812]
[1763667330520,0.405504,2838.1,2837.4,0.1878]
[1763667331721,0.21797967,2838.1,2837.4,0.1878]
[1763667332394,0.1867,2838.7,2838.0,0.4975]
[1763667332595,0.4557,2839.3,2838.1,0.4975]
[1763667332994,0.4557,2839.3,2838.2,0.1812]
[1763667333401,0.1867,2839.4,2838.3,0.456]
[1763667333932,0.4557,2840.0,2839.3,0.0939]
[1763667334226,0.32802023,2840.1,2839.0,0.1812]
[1763667334387,0.405504,2840.1,2839.0,0.1812]
[1763667334815,0.73352423,2840.1,2839.0,0.1812]
[1763667335017,0.32802023,2840.1,2839.0,0.6525]
[1763667335244,0.405504,2840.1,2839.0,0.6525]
[1763667335729,0.32802023,2840.1,2839.1,0.4713]
[1763667335940,0.32802023,2840.3,2839.1,0.4713]
[1763667336093,0.002,2840.5,2839.1,0.4713]
[1763667336791,0.002,2840.5,2840.3,0.1842]
[1763667337024,0.405504,2840.3,2840.1,0.1842]
[1763667337225,0.002,2840.5,2840.1,0.1842]
[1763667337898,0.405504,2840.3,2840.1,0.1842]
[1763667338103,0.405504,2840.3,2839.8,0.1842]
[1763667338501,0.405504,2840.3,2839.9,0.4883]
[1763667338690,0.002,2840.5,2839.9,0.4883]
[1763667338892,0.405504,2840.3,2839.8,0.1842]
[1763667339126,0.405504,2839.8,2839.0,0.6695]
[1763667339327,0.405504,2840.2,2839.0,0.6695]
[1763667339550,0.73343239,2840.2,2839.0,0.6695]
[1763667339744,1.22603239,2840.2,2839.0,0.6695]
[1763667339955,0.002,2840.5,2839.1,0.4883]
[1763667340159,0.405504,2840.4,2839.1,0.4883]
[1763667340383,0.405504,2840.4,2838.2,0.1812]
[1763667340384,0.405504,2839.1,2838.2,0.1812]
[1763667340669,0.405504,2839.1,2837.3,7.53973104]
[1763667340670,0.405504,2838.9,2837.6,0.4883]
[1763667340825,0.405504,2838.7,2837.6,0.4883]
[1763667341221,0.32821815,2838.7,2837.1,0.001]
[1763667341426,0.405504,2838.5,2837.4,0.001]
[1763667341626,0.73372215,2838.5,2837.4,0.001]
[1763667341826,0.405504,2838.3,2837.4,0.001]
[1763667342027,0.73372215,2838.3,2837.4,0.001]
[1763667342456,0.73372215,2838.3,2837.5,0.4883]
[1763667342457,0.405504,2838.3,2837.5,0.4883]
[1763667342643,0.73373405,2838.8,2837.5,0.4883]
[1763667343437,0.32823005,2838.8,2837.5,0.4883]
[1763667343658,0.52173005,2839.2,2837.5,0.4883]
[1763667343975,0.405504,2839.1,2837.5,0.4883]
[1763667344175,0.73373405,2839.1,2837.5,0.4883]
[1763667344378,0.405504,2838.9,2837.5,0.4883]
[1763667345255,0.405504,2839.1,2837.5,0.4883]
[1763667345567,0.898104,2839.1,2837.5,0.4883]
[1763667346068,0.405504,2838.9,2837.5,0.4883]
[1763667346284,0.73362311,2838.9,2837.5,0.4883]
[1763667346444,0.405504,2838.7,2837.4,0.001]
[1763667346633,0.405504,2838.5,2837.4,0.001]
[1763667347032,0.405504,2838.4,2837.5,0.4883]
[1763667347270,0.1935,2839.2,2837.5,0.4883]
[1763667347271,0.4926,2838.9,2837.5,0.4883]
[1763667347438,0.8206462,2839.1,2838.3,0.193]
[1763667347644,0.405504,2839.0,2837.5,0.4883]
[1763667348042,0.405504,2838.9,2837.5,0.4883]
[1763667348451,0.405504,2838.8,2837.5,0.4883]
[1763667348864,0.405504,2838.9,2837.5,0.4883]
[1763667349131,0.405504,2839.1,2837.5,0.4883]
[1763667349773,0.405504,2838.7,2837.5,0.4883]
[1763667350324,0.55296486,2838.8,2838.6,0.193]
[1763667350568,0.4926,2839.9,2838.6,0.193]
[1763667350770,0.82064446,2839.9,2838.6,0.6813]
[1763667350984,0.002,2840.5,2838.7,0.90699264]
[1763667350985,0.4946,2840.5,2838.7,0.90699264]
[1763667351131,0.002,2840.5,2839.2,0.90699264]
[1763667351335,0.002,2840.5,2838.8,0.91280237]
[1763667351336,0.002,2840.1,2838.8,1.40110237]
[1763667351561,0.002,2840.1,2838.6,0.193]
[1763667351762,0.002,2840.1,2838.9,0.4883]
[1763667351976,0.405504,2839.9,2838.9,0.4883]
[1763667352484,0.405504,2839.9,2838.6,0.193]
[1763667352485,0.405504,2839.7,2838.6,0.193]
[1763667352865,0.405504,2839.5,2838.6,0.193]
[1763667353178,0.58354941,2839.5,2838.6,0.193]
[1763667353974,0.58354941,2839.5,2838.6,0.6813]
[1763667354138,0.405504,2839.3,2838.3,0.193]
[1763667354336,0.405504,2839.3,2838.3,0.6813]
[1763667354873,0.17804541,2839.5,2838.3,0.6813]
[1763667354874,0.17804541,2839.5,2838.4,0.4883]
[1763667355173,0.405504,2839.7,2838.4,0.4883]
[1763667355550,1.22647871,2839.7,2838.4,0.4883]
[1763667355743,0.898104,2839.7,2838.4,0.4883]
[1763667355944,0.405504,2839.5,2838.3,0.193]
[1763667356263,0.405504,2839.3,2838.3,0.193]
[1763667356767,0.405504,2839.2,2838.3,0.193]
[1763667356965,0.405504,2839.2,2838.0,0.1902]
[1763667357271,0.405504,2839.0,2837.8,0.1902]
[1763667357472,0.405504,2839.0,2837.1,0.001]
[1763667357473,0.73402298,2839.0,2837.5,0.1902]
[1763667357634,0.405504,2838.8,2837.5,0.1902]
[1763667357864,0.405504,2838.6,2837.5,0.1902]
[1763667358395,0.74014428,2838.7,2837.5,0.1902]
[1763667358396,0.405504,2838.4,2837.5,0.1902]
[1763667359003,0.405504,2838.2,2837.1,0.001]
[1763667359505,0.405504,2838.1,2837.1,0.001]
[1763667359707,0.405504,2838.5,2837.2,0.4883]
[1763667359869,0.405504,2838.5,2837.5,0.4883]
[1763667360271,0.405504,2838.8,2837.5,0.4883]
[1763667360466,0.1935,2838.9,2837.5,0.4883]
[1763667361219,0.1935,2839.8,2837.5,0.4883]
[1763667361220,0.1935,2839.8,2838.8,0.1902]
[1763667361613,0.1935,2839.8,2838.8,0.6785]
[1763667361770,0.1935,2838.9,2837.8,0.4883]
[1763667361965,0.405504,2838.8,2838.1,0.1902]
[1763667362275,0.4926,2839.7,2838.1,0.1902]
[1763667362477,0.4926,2839.7,2838.2,0.4883]
[1763667362662,0.4926,2839.7,2838.1,0.1902]
[1763667362868,0.405504,2839.6,2838.1,0.6785]
[1763667363099,0.405504,2839.5,2838.1,0.6785]
[1763667363367,0.4926,2839.7,2838.2,0.4883]
[1763667363595,0.82116604,2839.7,2838.3,0.77478335]
[1763667363795,0.405504,2839.3,2838.2,0.4883]
[1763667363995,0.405504,2839.3,2838.3,0.4883]
[1763667364371,0.405504,2839.1,2838.1,0.1902]
[1763667364912,0.405504,2838.1,2837.4,0.001]
[1763667365071,0.32875691,2838.1,2837.4,0.001]
[1763667365274,0.1935,2838.2,2837.4,0.001]
[1763667365275,0.898104,2838.0,2837.4,0.001]
[1763667365508,0.405504,2837.8,2837.4,0.001]
[1763667365717,0.405504,2837.6,2837.4,0.001]
[1763667366216,0.898104,2837.5,2837.4,0.001]
[1763667366524,0.405504,2837.5,2837.4,0.001]
[1763667367586,0.1935,2838.5,2837.4,7.55863353]
[1763667367801,0.405504,2838.4,2837.4,7.55863353]
[1763667368015,0.405504,2838.4,2837.5,0.75586335]
[1763667368313,0.4926,2838.7,2837.5,1.24416335]
[1763667368877,0.405504,2838.6,2837.5,1.24416335]
[1763667369080,0.052,2840.0,2837.8,7.06933353]
[1763667369081,0.002,2840.0,2837.8,7.06933353]
[1763667369414,0.405504,2838.9,2837.8,7.06933353]
[1763667369720,0.4837,2839.4,2837.9,0.70693335]
[1763667369879,0.405504,2838.9,2837.9,0.70693335]
[1763667370218,0.4837,2839.4,2838.2,7.06933353]
[1763667370375,0.32876982,2839.7,2838.6,7.06933353]
[1763667370580,0.4837,2839.7,2838.6,7.06933353]
[1763667370805,0.405504,2839.6,2838.7,0.70693335]
[1763667371030,0.4837,2839.7,2838.7,0.70693335]
[1763667371178,0.002,2840.0,2839.0,7.06933353]
[1763667371382,0.002,2840.0,2839.9,0.1872]
[1763667371879,0.002,2840.0,2839.9,0.6462]
[1763667372076,0.002,2840.0,2839.9,0.95875335]
[1763667372310,0.002,2840.0,2839.6,0.1872]
[1763667372483,0.002,2840.0,2839.9,0.459]
[1763667374886,0.55461671,2840.0,2839.9,0.459]
[1763667375383,0.002,2840.5,2839.9,0.459]
[1763667375584,0.002,2840.5,2840.2,7.06933353]
[1763667375786,0.002,2840.7,2840.3,0.70693335]
[1763667375972,0.002,2841.5,2840.3,2.07292599]
[1763667376175,0.002,2841.5,2840.9,7.06933353]
[1763667376825,0.002,2841.5,2841.0,0.459]
[1763667376987,0.002,2841.8,2841.5,0.90699264]
[1763667377185,0.002,2841.8,2840.8,0.1872]
[1763667377779,0.002,2841.8,2841.1,7.06933353]
[1763667379228,0.002,2841.8,2840.8,0.1872]
[1763667379229,0.405504,2841.6,2840.8,0.1872]
[1763667380023,0.4837,2841.7,2840.4,7.52833353]
[1763667380024,0.4837,2841.5,2840.4,7.06933353]
[1763667380220,0.405504,2841.4,2840.3,0.1872]
[1763667380659,0.405504,2841.2,2840.3,0.1872]
[1763667381145,0.002,2841.8,2840.8,7.06933353]
[1763667381345,0.002,2841.8,2840.9,0.70693335]
[1763667381346,0.407504,2841.8,2840.9,0.70693335]
[1763667381653,0.002,2841.8,2841.7,7.06933353]
[1763667381818,0.002,2841.8,2841.7,0.90699264]
[1763667382146,0.002,2841.8,2841.1,0.459]
[1763667382147,0.407504,2841.8,2841.1,0.459]
[1763667382356,0.002,2841.8,2841.4,0.90699264]
[1763667382567,0.002,2841.8,2841.4,1.70462526]
[1763667382946,0.405504,2841.6,2840.9,0.70693335]